fUSD/lending_fUSD_20260107
["ID","MTS","AMOUNT","RATE_DAILY","PERIOD"]
[400719439,1767793993265,-10000.01,0.00015879,2]
[400719440,1767793993387,-10000.01,0.00015879,2]
[400719441,1767793993775,-10000.01,0.00015879,2]
[400719442,1767793993876,-10000.01,0.00015879,2]
[400719443,1767793995135,-10000.01,0.00015879,2]
[400719444,1767793995719,-10000.01,0.00015879,2]
[400719445,1767794023633,-186.3050631,0.00015878,2]
[400719446,1767794023668,-500.0,0.00015878,2]
[400719447,1767794024151,-8627.3998738,0.00015879,2]
[400719448,1767794024531,-10000.01,0.00015879,2]
[400719449,1767794024633,-10000.01,0.00015879,2]
[400719450,1767794024770,-10000.01,0.00015879,2]
[400719451,1767794024951,-10000.01,0.00015879,2]
[400719459,1767794097584,6000.0,0.00015878,10]
[400719461,1767794172587,-1200.0,0.00015877,2]
[400719462,1767794172614,-300.0,0.00015877,2]
[400719463,1767794172641,-250.0,0.00015878,2]
[400719464,1767794172666,-80857.36446068,0.00015878,10]
[400719465,1767794172697,-500.0,0.00015878,2]
[400719466,1767794172728,-500.0,0.00015878,2]
[400719467,1767794172760,-500.0,0.00015878,2]
[400719468,1767794172794,-315.17296363,0.00015878,2]
[400719469,1767794172824,-500.0,0.00015878,2]
[400719470,1767794172853,-500.0,0.00015878,2]
[400719471,1767794172887,-500.0,0.00015878,2]
[400719472,1767794172919,-500.0,0.00015878,2]
[400719473,1767794172951,-500.0,0.00015878,2]
[400719474,1767794172981,-500.0,0.00015878,2]
[400719475,1767794173011,-500.0,0.00015878,2]
[400719476,1767794173044,-500.0,0.00015878,2]
[400719477,1767794173073,-500.0,0.00015878,2]
[400719478,1767794173102,-500.0,0.00015878,2]
[400719479,1767794173130,-500.0,0.00015878,2]
[400719480,1767794173158,-500.0,0.00015878,2]
[400719481,1767794173185,-500.0,0.00015878,2]
[400719482,1767794173213,-500.0,0.00015878,2]
[400719483,1767794173240,-500.0,0.00015878,2]
[400719484,1767794173264,-500.0,0.00015878,2]
[400719485,1767794173289,-494.14540421,0.00015878,2]
[400719486,1767794173316,-500.0,0.00015878,2]
[400719487,1767794173340,-270.82585561,0.00015878,2]
[400719488,1767794173365,-157.79600896,0.00015878,2]
[400719489,1767794173389,-185.49648793,0.00015878,2]
[400719490,1767794173414,-300.0,0.00015878,2]
[400719491,1767794173444,-500.0,0.00015878,2]
[400719492,1767794173473,-586.02326518,0.00015878,2]
[400719493,1767794173504,-739287.34795978,0.00015879,2]
[400719494,1767794233413,-10000.01,0.00015779,2]
[400719495,1767794234041,-10000.01,0.00015779,2]
[400719496,1767794235027,-10000.01,0.00015779,2]
[400719497,1767794235444,-10000.01,0.00015779,2]
[400719498,1767794235633,-10000.01,0.00015779,2]
[400719499,1767794235836,-10000.01,0.00015779,2]
[400719500,1767794236442,-10000.01,0.00015779,2]
[400719501,1767794236513,-10000.01,0.00015779,2]
[400719502,1767794236600,-10000.01,0.00015779,2]
[400719503,1767794236816,-10000.01,0.00015779,2]
[400719504,1767794250725,-899999.9,0.00015779,2]
[400719505,1767794275346,884.09231461,0.00032,120]
[400719507,1767794297274,1863.0,0.00032877,120]
[400719508,1767794332387,10000.01,0.0001559,2]
[400719509,1767794332412,1499.99,0.0001559,2]
[400719514,1767794362068,1000.0,0.00032876,120]
[400719515,1767794365917,150.0,0.00014,2]
[400719516,1767794367190,204.96265734,0.00032,120]
[400719517,1767794376070,1000.0,0.00032876,120]
[400719518,1767794396885,1000.0,0.00032876,120]
[400719520,1767794415590,1000.0,0.00032876,120]
[400719524,1767794428478,1000.0,0.00032876,120]
[400719525,1767794429291,1730.06943,0.0003,120]
[400719526,1767794434099,-236.35737436,0.00015726,2]
[400719527,1767794434124,-19.37677168,0.00015778,2]
[400719530,1767794498600,-300.0,0.00015725,2]
[400719531,1767794498627,-18269.08323957,0.00015726,2]
[400719532,1767794498654,-1719.0728585,0.00015726,2]
[400719533,1767794498680,-300.0,0.00015778,2]
[400719534,1767794498706,-300.0,0.00015778,2]
[400719535,1767794498733,-1200.0,0.00015778,2]
[400719536,1767794498759,-500.0,0.00015778,2]
[400719537,1767794498784,-363.02226219,0.00015778,2]
[400719538,1767794498814,-207.77583593,0.00015778,2]
[400719539,1767794498845,-500.0,0.00015778,2]
[400719540,1767794498874,-535.01921818,0.00015778,2]
[400719541,1767794498899,-1001.3396,0.00015779,2]
[400719542,1767794498928,-974804.68698563,0.00015779,2]
[400719547,1767794548738,-300.0,0.00015778,2]
[400719558,1767794571483,200.0,0.00032,120]
[400719566,1767794582019,300.0,0.00015778,2]
[400719585,1767794701746,300.0,0.00015778,2]
[400719586,1767794701905,1200.0,0.00015778,2]
[400719593,1767794747345,726.7,0.00032877,120]
[400719600,1767794761450,300.0,0.00015778,2]
[400719635,1767794859549,500.0,0.00015629,2]
[400719642,1767794876275,-250.0,0.00015779,2]
[400719664,1767794918903,1325.74,0.000157,2]
[400719665,1767794919361,1325.74,0.000157,2]
[400719666,1767794920303,1325.74,0.000157,2]
[400719667,1767794920741,488.63,0.000157,2]
[400719669,1767794941485,300.0,0.00015778,2]
[400719673,1767794960333,4734.16,0.00015726,2]
[400719674,1767794960358,10000.01,0.00015726,2]
[400719675,1767794960383,1708.00491555,0.00015726,2]
[400719690,1767795001400,300.0,0.00015778,2]
[400719691,1767795001434,1200.0,0.00015778,2]
[400719707,1767795032143,-500.0,0.00015779,2]
[400719708,1767795032153,-365.0,0.00015779,2]
[400719709,1767795032192,-135.0,0.00015779,2]
[400719710,1767795032202,-500.0,0.00015779,2]
[400719711,1767795032211,-49.36394183,0.00015779,2]
[400719712,1767795032287,-450.63605817,0.00015779,2]
[400719713,1767795032297,-342.81643791,0.00015779,2]
[400719714,1767795032307,-303.57738446,0.00015779,2]
[400719715,1767795032316,-25195.31301437,0.00015779,2]
[400719716,1767795032326,-1002.29010168,0.00015805,2]
[400719717,1767795032336,-45785.608614,0.00015806,2]
[400719718,1767795032346,-200.0,0.00015817,2]
[400719719,1767795032355,-151.0,0.00015817,2]
[400719720,1767795032365,-151.0,0.00015817,2]
[400719722,1767795032373,-151.0,0.00015817,2]
[400719724,1767795032383,-151.0,0.00015817,2]
[400719726,1767795032392,-151.0,0.00015817,2]
[400719728,1767795032401,-409.25139494,0.00015817,2]
[400719730,1767795032410,-151.0,0.00015817,2]
[400719732,1767795032420,-500.0,0.00015817,2]
[400719733,1767795032430,-151.0,0.00015817,2]
[400719735,1767795032440,-151.0,0.00015817,2]
[400719737,1767795032449,-151.0,0.00015817,2]
[400719739,1767795032458,-206.69888792,0.00015817,2]
[400719741,1767795032468,-500.0,0.00015817,2]
[400719743,1767795032478,-322.77273588,0.00015817,2]
[400719744,1767795032487,-160123.0241054,0.00015826,2]
[400719745,1767795032497,-11153.388091,0.00015826,2]
[400719746,1767795032506,-2135.63,0.00015841,2]
[400719747,1767795032515,-765.17,0.00015888,2]
[400719748,1767795032524,-417.09,0.00015912,2]
[400719749,1767795032534,-500.0,0.00015973,2]
[400719750,1767795032545,-336.95,0.0001607,2]
[400719751,1767795032554,-999.99,0.0001607,2]
[400719752,1767795032564,-22334.32508892,0.00016202,2]
[400719753,1767795032573,-2647.6,0.00016225,2]
[400719754,1767795032583,-1852.42,0.00016225,2]
[400719755,1767795032593,-1197.25,0.00016225,2]
[400719756,1767795032602,-9999.99,0.00016225,2]
[400719757,1767795032612,-3355.20285092,0.00016238,2]
[400719758,1767795032621,-150.99,0.00016325,2]
[400719759,1767795032631,-9999.99,0.00016325,2]
[400719760,1767795032640,-9999.99,0.00016325,2]
[400719761,1767795032650,-9999.99,0.00016325,2]
[400719762,1767795032659,-31563.6428,0.00016338,2]
[400719763,1767795032669,-1000.0,0.00016338,2]
[400719764,1767795032679,-307.8049795,0.00016365,2]
[400719765,1767795032689,-500.0,0.00016365,2]
[400719766,1767795032698,-2093.35,0.00016388,2]
[400719767,1767795032708,-500.0,0.00016438,2]
[400719768,1767795032717,-500.0,0.00016438,2]
[400719769,1767795032726,-500.0,0.00016438,2]
[400719770,1767795032736,-500.0,0.00016438,2]
[400719771,1767795032746,-500.0,0.00016438,2]
[400719772,1767795032756,-500.0,0.00016438,2]
[400719773,1767795032765,-500.0,0.00016438,2]
[400719774,1767795032775,-500.0,0.00016438,2]
[400719775,1767795032784,-500.0,0.00016438,2]
[400719776,1767795032794,-500.0,0.00016438,2]
[400719777,1767795032804,-500.0,0.00016438,2]
[400719778,1767795032814,-500.0,0.00016438,2]
[400719779,1767795032823,-500.0,0.00016438,2]
[400719780,1767795032833,-500.0,0.00016438,2]
[400719781,1767795032842,-500.0,0.00016438,2]
[400719782,1767795032851,-500.0,0.00016438,2]
[400719783,1767795032862,-500.0,0.00016438,2]
[400719784,1767795032871,-500.0,0.00016438,2]
[400719785,1767795032881,-500.0,0.00016438,2]
[400719786,1767795032891,-500.0,0.00016438,2]
[400719787,1767795032901,-500.0,0.00016438,2]
[400719788,1767795032910,-500.0,0.00016438,2]
[400719789,1767795032920,-500.0,0.00016438,2]
[400719790,1767795032929,-500.0,0.00016438,2]
[400719791,1767795032939,-500.0,0.00016438,2]
[400719792,1767795032949,-500.0,0.00016438,2]
[400719793,1767795032958,-500.0,0.00016438,2]
[400719794,1767795032969,-500.0,0.00016438,2]
[400719795,1767795032978,-500.0,0.00016438,2]
[400719796,1767795032988,-500.0,0.00016438,2]
[400719797,1767795032999,-197.92235895,0.00016438,2]
[400719798,1767795033008,-500.0,0.00016438,2]
[400719799,1767795033017,-500.0,0.00016438,2]
[400719800,1767795033028,-500.0,0.00016438,2]
[400719801,1767795033037,-500.0,0.00016438,2]
[400719802,1767795033046,-500.0,0.00016438,2]
[400719803,1767795033056,-500.0,0.00016438,2]
[400719804,1767795033066,-500.0,0.00016438,2]
[400719805,1767795033076,-1278.56,0.00016438,2]
[400719806,1767795033086,-150.0,0.00016489,2]
[400719807,1767795033096,-500.0,0.00016529,2]
[400719808,1767795033106,-500.0,0.00016529,2]
[400719809,1767795033115,-500.0,0.00016529,2]
[400719810,1767795033125,-1278.56,0.00016712,2]
[400719811,1767795033134,-500.0,0.00016718,2]
[400719812,1767795033144,-151.0,0.00016718,2]
[400719813,1767795033154,-151.0,0.00016718,2]
[400719814,1767795033164,-500.0,0.00016718,2]
[400719815,1767795033173,-151.0,0.00016723,2]
[400719816,1767795033182,-151.0,0.00016723,2]
[400719817,1767795033193,-151.0,0.00016725,2]
[400719818,1767795033202,-151.0,0.00016725,2]
[400719819,1767795033211,-180.70774333,0.00016825,2]
[400719820,1767795033221,-574.12855637,0.00016825,2]
[400719821,1767795033231,-200.0,0.00016825,2]
[400719822,1767795033240,-207.4,0.00016825,2]
[400719823,1767795033250,-215.0738,0.00016825,2]
[400719824,1767795033259,-223.0315306,0.00016825,2]
[400719825,1767795033269,-231.28369723,0.00016825,2]
[400719826,1767795033283,-2000.0,0.00016825,2]
[400719827,1767795033293,-1500.0,0.00016825,2]
[400719828,1767795033303,-500.0,0.00016825,2]
[400719829,1767795033312,-239.84119403,0.00016825,2]
[400719830,1767795033322,-2000.0,0.00016825,2]
[400719831,1767795033332,-1500.0,0.00016825,2]
[400719832,1767795033342,-500.0,0.00016825,2]
[400719833,1767795033354,-248.71531821,0.00016825,2]
[400719834,1767795033364,-2000.0,0.00016825,2]
[400719835,1767795033374,-1500.0,0.00016825,2]
[400719836,1767795033383,-500.0,0.00016825,2]
[400719837,1767795033393,-500.0,0.00016825,2]
[400719838,1767795033403,-1500.0,0.00016825,2]
[400719839,1767795033412,-2000.0,0.00016825,2]
[400719840,1767795033422,-257.91778498,0.00016825,2]
[400719841,1767795033432,-500.0,0.00016825,2]
[400719842,1767795033442,-500.0,0.00016825,2]
[400719843,1767795033451,-1633.50600033,0.00016825,2]
[400719844,1767795033461,-500.0,0.00016825,2]
[400719845,1767795033470,-500.0,0.00016825,2]
[400719846,1767795033481,-1500.0,0.00016825,2]
[400719847,1767795033491,-267.46074303,0.00016825,2]
[400719848,1767795033500,-500.0,0.00016825,2]
[400719849,1767795033509,-1500.0,0.00016825,2]
[400719850,1767795033519,-277.35679052,0.00016825,2]
[400719851,1767795033528,-500.0,0.00016825,2]
[400719852,1767795033537,-500.0,0.00016825,2]
[400719853,1767795033546,-1500.0,0.00016825,2]
[400719854,1767795033556,-500.0,0.00016825,2]
[400719855,1767795033565,-1500.0,0.00016825,2]
[400719856,1767795033574,-500.0,0.00016825,2]
[400719857,1767795033583,-500.0,0.00016825,2]
[400719858,1767795033592,-1500.0,0.00016825,2]
[400719859,1767795033602,-500.0,0.00016825,2]
[400719860,1767795033611,-500.0,0.00016825,2]
[400719861,1767795033620,-500.0,0.00016825,2]
[400719862,1767795033630,-1500.0,0.00016825,2]
[400719863,1767795033640,-500.0,0.00016825,2]
[400719864,1767795033650,-500.0,0.00016825,2]
[400719865,1767795033660,-500.0,0.00016825,2]
[400719866,1767795033670,-1500.0,0.00016825,2]
[400719867,1767795033679,-500.0,0.00016825,2]
[400719868,1767795033689,-500.0,0.00016825,2]
[400719869,1767795033699,-500.0,0.00016825,2]
[400719870,1767795033711,-500.0,0.00016825,2]
[400719871,1767795033721,-500.0,0.00016825,2]
[400719872,1767795033731,-197.10869786,0.00016825,2]
[400719873,1767795033740,-398.05426978,0.00016826,2]
[400719874,1767795033750,-219.26,0.00016839,2]
[400719875,1767795033759,-403.66588802,0.0001687,2]
[400719876,1767795033768,-500.0,0.00016959,2]
[400719877,1767795033778,-336.95,0.00016963,2]
[400719878,1767795033787,-2826.31300377,0.00016967,2]
[400719879,1767795033797,-474.29981828,0.00016986,2]
[400719880,1767795033806,-1278.56,0.00016986,2]
[400719881,1767795033815,-250.0,0.00017,2]
[400719882,1767795033824,-505.0,0.00017068,2]
[400719883,1767795033834,-420.0,0.00017255,2]
[400719884,1767795033843,-1278.56,0.0001726,2]
[400719885,1767795033852,-1680.0,0.00017342,2]
[400719886,1767795033862,-2500.0,0.00017356,2]
[400719887,1767795033871,-600.0,0.00017356,2]
[400719888,1767795033881,-600.0,0.00017356,2]
[400719889,1767795033891,-250.0,0.00017357,2]
[400719890,1767795033900,-250.0,0.00017357,2]
[400719891,1767795033909,-300.0,0.00017357,2]
[400719892,1767795033918,-595.37131296,0.00017373,2]
[400719893,1767795033928,-160123.0241054,0.0001742,2]
[400719894,1767795033938,-500.0,0.0001744,2]
[400719895,1767795033947,-503.41430106,0.0001744,2]
[400719896,1767795033956,-500.0,0.0001744,2]
[400719897,1767795033966,-2000.0,0.000175,2]
[400719898,1767795033976,-1278.56,0.00017534,2]
[400719899,1767795033986,-601.78575626,0.00017593,2]
[400719900,1767795033995,-500.0,0.00017593,2]
[400719901,1767795034005,-500.0,0.00017594,2]
[400719902,1767795034014,-500.0,0.00017594,2]
[400719903,1767795034024,-500.0,0.00017594,2]
[400719904,1767795034033,-552.50710843,0.00017594,2]
[400719905,1767795034043,-500.0,0.00017594,2]
[400719906,1767795034053,-500.0,0.00017594,2]
[400719907,1767795034063,-500.0,0.00017594,2]
[400719908,1767795034072,-500.0,0.00017594,2]
[400719909,1767795034082,-500.0,0.00017594,2]
[400719910,1767795034091,-500.0,0.00017594,2]
[400719911,1767795034101,-500.0,0.00017594,2]
[400719912,1767795034111,-501.43294385,0.00017594,2]
[400719913,1767795034120,-500.0,0.00017594,2]
[400719914,1767795034130,-500.0,0.00017594,2]
[400719915,1767795034140,-311.64161933,0.00017594,2]
[400719916,1767795034150,-500.0,0.00017594,2]
[400719917,1767795034160,-500.0,0.00017594,2]
[400719918,1767795034169,-500.0,0.00017594,2]
[400719919,1767795034178,-500.0,0.00017594,2]
[400719920,1767795034188,-500.0,0.00017594,2]
[400719921,1767795034197,-500.0,0.00017594,2]
[400719922,1767795034206,-500.0,0.00017594,2]
[400719923,1767795034216,-500.0,0.00017594,2]
[400719924,1767795034225,-331.79442927,0.00017594,2]
[400719925,1767795034235,-500.0,0.00017594,2]
[400719926,1767795034244,-30759.29733124,0.00017617,2]
[400719927,1767795034253,-300.0,0.00017726,2]
[400719928,1767795034263,-300.0,0.00017726,2]
[400719929,1767795034275,-300.0,0.00017728,2]
[400719930,1767795034285,-300.0,0.00017728,2]
[400719931,1767795034294,-300.0,0.00017733,2]
[400719932,1767795034303,-307.20020424,0.00017734,2]
[400719933,1767795034314,-1047.0,0.00017736,2]
[400719934,1767795034323,-300.0,0.00017737,2]
[400719935,1767795034334,-300.0,0.00017737,2]
[400719936,1767795034345,-300.0,0.00017743,2]
[400719937,1767795034355,-300.0,0.00017743,2]
[400719938,1767795034364,-300.0,0.00017746,2]
[400719939,1767795034374,-300.0,0.0001775,2]
[400719940,1767795034383,-150.0,0.00017751,2]
[400719941,1767795034392,-500.0,0.00017753,2]
[400719942,1767795034402,-300.0,0.00017758,2]
[400719943,1767795034411,-300.0,0.00017759,2]
[400719944,1767795034420,-300.0,0.0001776,2]
[400719945,1767795034430,-300.0,0.00017764,2]
[400719946,1767795034441,-300.0,0.00017765,2]
[400719947,1767795034450,-300.0,0.00017774,2]
[400719948,1767795034460,-300.0,0.00017774,2]
[400719949,1767795034470,-300.0,0.00017779,2]
[400719950,1767795034479,-300.0,0.0001778,2]
[400719951,1767795034488,-300.0,0.00017781,2]
[400719952,1767795034497,-300.0,0.00017781,2]
[400719953,1767795034506,-300.0,0.00017783,2]
[400719954,1767795034515,-300.0,0.00017783,2]
[400719955,1767795034815,-300.0,0.00017791,2]
[400719956,1767795034840,-300.0,0.00017796,2]
[400719957,1767795034851,-300.0,0.00017799,2]
[400719958,1767795034860,-300.0,0.00017803,2]
[400719959,1767795034869,-1278.56,0.00017808,2]
[400719960,1767795034879,-300.0,0.00017809,2]
[400719961,1767795034888,-300.0,0.00017811,2]
[400719962,1767795034898,-300.0,0.00017814,2]
[400719963,1767795034908,-300.0,0.00017815,2]
[400719964,1767795034918,-300.0,0.00017816,2]
[400719965,1767795034927,-300.0,0.00017816,2]
[400719966,1767795034937,-300.0,0.00017817,2]
[400719967,1767795034947,-300.0,0.00017819,2]
[400719968,1767795034956,-300.0,0.0001782,2]
[400719969,1767795034973,-300.0,0.00017821,2]
[400719970,1767795034985,-300.0,0.00017822,2]
[400719971,1767795034994,-300.0,0.00017826,2]
[400719972,1767795035005,-300.0,0.00017831,2]
[400719973,1767795035015,-300.0,0.00017838,2]
[400719974,1767795035024,-300.0,0.00017841,2]
[400719975,1767795035034,-300.0,0.00017842,2]
[400719976,1767795035044,-300.0,0.00017842,2]
[400719977,1767795035053,-300.0,0.00017843,2]
[400719978,1767795035063,-300.0,0.00017848,2]
[400719979,1767795035072,-300.0,0.00017854,2]
[400719980,1767795035081,-336.95,0.00017856,2]
[400719981,1767795035091,-200.0,0.00017856,2]
[400719982,1767795035100,-300.0,0.00017868,2]
[400719983,1767795035110,-300.0,0.00017872,2]
[400719984,1767795035119,-300.0,0.00017876,2]
[400719985,1767795035128,-300.0,0.00017877,2]
[400719986,1767795035139,-150.0,0.0001788,2]
[400719987,1767795035148,-300.0,0.00017881,2]
[400719988,1767795035158,-300.0,0.00017885,2]
[400719989,1767795035167,-300.0,0.00017887,2]
[400719990,1767795035176,-300.0,0.00017887,2]
[400719991,1767795035185,-300.0,0.00017889,2]
[400719992,1767795035194,-300.0,0.00017893,2]
[400719993,1767795035203,-300.0,0.00017898,2]
[400719994,1767795035212,-216.47,0.000179,2]
[400719995,1767795035222,-636.51178542,0.000179,2]
[400719996,1767795035231,-417.09,0.00017901,2]
[400719997,1767795035240,-2328.858,0.00017903,2]
[400719998,1767795035249,-178.142,0.00017903,2]
[400719999,1767795035259,-300.0,0.0001791,2]
[400720000,1767795035268,-300.0,0.00017912,2]
[400720001,1767795035281,-5990.0,0.00017916,2]
[400720002,1767795035291,-300.0,0.00017916,2]
[400720003,1767795035301,-300.0,0.00017919,2]
[400720004,1767795035311,-617.40005154,0.00017921,2]
[400720005,1767795035322,-300.0,0.00017924,2]
[400720006,1767795035330,-300.0,0.00017926,2]
[400720007,1767795035339,-300.0,0.0001793,2]
[400720008,1767795035351,-300.0,0.00017932,2]
[400720009,1767795035360,-300.0,0.00017938,2]
[400720010,1767795035370,-300.0,0.0001794,2]
[400720011,1767795035379,-300.0,0.00017948,2]
[400720012,1767795035388,-300.0,0.00017949,2]
[400720013,1767795035397,-300.0,0.00017953,2]
[400720014,1767795035406,-300.0,0.00017953,2]
[400720015,1767795035415,-300.0,0.00017958,2]
[400720016,1767795035424,-300.0,0.00017958,2]
[400720017,1767795035434,-300.0,0.00017959,2]
[400720018,1767795035443,-300.0,0.00017963,2]
[400720019,1767795035452,-300.0,0.00017967,2]
[400720020,1767795035461,-1307.13264214,0.0001797,2]
[400720021,1767795035471,-300.0,0.00017971,2]
[400720022,1767795035480,-300.0,0.00017972,2]
[400720023,1767795035489,-300.0,0.00017973,2]
[400720024,1767795035499,-300.0,0.00017977,2]
[400720025,1767795035509,-300.0,0.00017978,2]
[400720026,1767795035519,-300.0,0.00017984,2]
[400720027,1767795035528,-300.0,0.00017985,2]
[400720028,1767795035537,-300.0,0.00017987,2]
[400720029,1767795035547,-151.0,0.00017997,2]
[400720030,1767795035557,-300.0,0.00017999,2]
[400720031,1767795035566,-300.0,0.00017999,2]
[400720032,1767795035579,-666.0,0.00017999,2]
[400720033,1767795035589,-357.10757348,0.00017999,2]
[400720034,1767795035599,-300.0,0.00017999,2]
[400720035,1767795035608,-500.0,0.00017999,2]
[400720036,1767795035617,-500.0,0.00017999,2]
[400720037,1767795035626,-666.0,0.00017999,2]
[400720038,1767795035635,-300.0,0.00017999,2]
[400720039,1767795035645,-666.0,0.00017999,2]
[400720040,1767795035654,-604.11558353,0.00017999,2]
[400720041,1767795035663,-160720.03853705,0.00018,2]
[400720042,1767795036211,-23763.886759,0.00018,2]
[400720043,1767795036224,-113315.72570737,0.00018,2]
[400720044,1767795036236,-58401.25138308,0.00018,2]
[400720157,1767795039578,-298367.28380254,0.00018,2]
[400720500,1767795045984,-917.71,0.00016225,2]
[400720512,1767795046100,-767.18234951,0.00016225,2]
[400720514,1767795046109,-1826.0,0.000179,2]
[400720516,1767795046119,-1000.0,0.000179,2]
[400720518,1767795046129,-1000.0,0.000179,2]
[400720520,1767795046139,-1000.0,0.000179,2]
[400720522,1767795046148,-12987.93923277,0.00018,2]
[400720553,1767795047088,-22220.93962766,0.00018,2]
[400720554,1767795047137,-1000.0,0.00018,2]
[400720555,1767795047148,-553.29706463,0.00018,2]
[400720556,1767795047159,-1159.3,0.00018,2]
[400720557,1767795047170,-400.0,0.00018,2]
[400720558,1767795047201,-819.98919018,0.00018,2]
[400720559,1767795047284,-3000.0,0.00018,2]
[400720560,1767795047495,-17637.18177745,0.00018,2]
[400720561,1767795047531,-59374.05788496,0.00018,2]
[400720580,1767795082742,1100.0,0.00015359,2]
[400720581,1767795087544,1105.00292435,0.00015346,2]
[400720582,1767795103266,6295.00707565,0.00015679,2]
[400720583,1767795103296,10000.01,0.00015679,2]
[400720584,1767795103325,10000.01,0.00015679,2]
[400720585,1767795103352,10000.01,0.00015679,2]
[400720586,1767795103377,140700.0,0.00015679,2]
[400720600,1767795356322,-1495.82726372,0.00015626,2]
[400720601,1767795356347,-300.0,0.00015678,2]
[400720602,1767795356372,-1200.0,0.00015678,2]
[400720603,1767795356394,-287.26574478,0.00015678,2]
[400720604,1767795356416,-500.0,0.00015678,2]
[400720605,1767795356438,-500.0,0.00015678,2]
[400720606,1767795356460,-455.71446841,0.00015678,2]
[400720607,1767795365526,-19561.19252309,0.00015679,2]
[400720609,1767795380329,-943.0,0.00015679,2]
[400720610,1767795391067,-1934.0,0.00015679,2]
[400720611,1767795611362,161.36320348,0.00032877,120]
[400720613,1767795694137,1863.086,0.00015366,2]
[400720614,1767795694207,178.142,0.00015366,2]
[400720615,1767795701997,-1308.84885579,0.000156,2]
[400720616,1767795702020,-1200.0,0.00015625,2]
[400720617,1767795702041,-300.0,0.00015625,2]
[400720618,1767795702063,-4215.92438182,0.00015626,2]
[400720619,1767795702085,-15937.67499369,0.00015626,2]
[400720620,1767795702107,-150.0,0.00015678,2]
[400720621,1767795702129,-150.0,0.00015678,2]
[400720622,1767795702151,-600.0,0.00015678,2]
[400720623,1767795702177,-376137.5517687,0.00015679,2]
[400720624,1767795704185,-150.0,0.00015678,2]
[400720625,1767795704211,-399850.0,0.00015679,2]
[400720626,1767795749676,-500.0,0.00015679,2]
[400720627,1767795749696,-500.0,0.00015679,2]
[400720628,1767795749720,-24579.21863256,0.00015679,2]
[400720629,1767795749740,-150.0,0.000157,2]
[400720630,1767795828497,150.0,0.000157,2]
[400720631,1767795834270,74120.78136744,0.00015526,2]
[400720632,1767795834299,10000.01,0.00015526,2]
[400720633,1767795834325,10000.01,0.00015526,2]
[400720634,1767795834351,10000.01,0.00015526,2]
[400720635,1767795834377,10000.01,0.00015526,2]
[400720636,1767795834403,10000.01,0.00015526,2]
[400720637,1767795834427,10000.01,0.00015526,2]
[400720638,1767795834452,10000.01,0.00015526,2]
[400720639,1767795834478,10000.01,0.00015526,2]
[400720640,1767795834509,10000.01,0.00015526,2]
[400720641,1767795834539,10000.01,0.00015526,2]
[400720645,1767795877168,-800.79260203,0.00015526,2]
[400720646,1767795883799,171.24,0.00012829,2]
[400720647,1767795890713,-1305.92298911,0.00015479,2]
[400720648,1767795890745,-500.0,0.00015525,2]
[400720649,1767795890779,-375.78112027,0.00015525,2]